bitfinex/quotes_BTCUSD_20230114
["timestamp","ask_amount","ask_price","bid_price","bid_amount"]
[1673722726250,0.00970071,20750.0,20749.0,0.70449049]
[1673722726499,0.00970071,20750.0,20749.0,0.84349049]
[1673722726500,0.01270071,20750.0,20749.0,0.84349049]
[1673722726743,0.01270071,20750.0,20749.0,0.72740549]
[1673722726744,0.00970071,20750.0,20749.0,0.72740549]
[1673722726997,0.00970071,20750.0,20749.0,0.86640549]
[1673722727246,0.00970071,20750.0,20749.0,0.72740549]
[1673722727491,0.00970071,20750.0,20749.0,0.86640549]
[1673722727744,0.00970071,20750.0,20749.0,0.72740549]
[1673722727745,0.01270071,20750.0,20749.0,0.72740549]
[1673722728776,0.01570071,20750.0,20749.0,0.86640549]
[1673722729026,0.01570071,20750.0,20749.0,0.84349049]
[1673722730601,0.01570071,20750.0,20749.0,0.139]
[1673722730874,0.29437126,20750.0,20749.0,0.139]
[1673722733686,1.09642026,20750.0,20749.0,0.139]
[1673722733951,1.57834726,20750.0,20749.0,0.139]
[1673722734449,1.29967671,20750.0,20749.0,0.139]
[1673722734960,1.39967671,20750.0,20749.0,0.139]
[1673722735219,1.44335206,20750.0,20749.0,0.13892897]
[1673722735730,1.29967671,20750.0,20749.0,0.13892897]
[1673722736251,1.51407971,20750.0,20749.0,0.13892897]
[1673722737008,1.50807971,20750.0,20745.0,0.76263722]
[1673722737296,1.23195771,20750.0,20749.0,0.004]
[1673722737798,1.55207971,20750.0,20749.0,0.004]
[1673722738104,1.50807971,20750.0,20745.0,0.76263722]
[1673722738304,0.18807,20749.0,20745.0,0.90163722]
[1673722738559,1.19097571,20750.0,20745.0,0.90163722]
[1673722738805,1.59513881,20750.0,20749.0,0.004]
[1673722739065,1.37865106,20750.0,20749.0,0.004]
[1673722739311,1.65177306,20750.0,20746.0,0.2711314]
[1673722739574,0.70603071,20750.0,20746.0,0.2711314]
[1673722739820,0.70603071,20750.0,20746.0,0.7531504]
[1673722740077,0.22410371,20750.0,20747.0,0.31362838]
[1673722740331,0.22410371,20750.0,20747.0,0.21362838]
[1673722740824,0.22410371,20750.0,20748.0,0.28998887]
[1673722741098,0.22410371,20750.0,20749.0,0.76690801]
[1673722741099,0.00970071,20750.0,20749.0,0.76690801]
[1673722741342,0.01270071,20750.0,20749.0,1.24885801]
[1673722741602,0.01270071,20750.0,20749.0,1.57177301]
[1673722741603,0.00970071,20750.0,20749.0,1.57177301]
[1673722741869,0.01170071,20750.0,20749.0,1.27177301]
[1673722742106,0.00970071,20750.0,20749.0,1.27177301]
[1673722742360,0.00970071,20750.0,20749.0,1.27577301]
[1673722742361,0.05370071,20750.0,20749.0,1.27577301]
[1673722743684,0.05370071,20750.0,20749.0,1.57577301]
[1673722744187,0.05370071,20750.0,20749.0,1.58298021]
[1673722745668,0.05370071,20750.0,20749.0,1.4348048]
[1673722745919,0.05370071,20750.0,20749.0,1.5348048]
[1673722746662,0.05370071,20750.0,20749.0,2.18040086]
[1673722746916,0.04833064,20750.0,20749.0,1.89246255]
[1673722747174,0.04833064,20750.0,20749.0,1.53253966]
[1673722747663,0.04833064,20750.0,20749.0,1.89234818]
[1673722747913,0.04833064,20750.0,20749.0,1.53253966]
[1673722748417,0.04833064,20750.0,20749.0,1.52853966]
[1673722748418,0.00433064,20750.0,20749.0,1.52853966]
[1673722748667,0.00433064,20750.0,20749.0,2.09895421]
[1673722748668,0.00130635,20750.0,20749.0,2.09895421]
[1673722748912,0.01033418,20751.0,20749.0,2.71871773]
[1673722749159,0.01033418,20751.0,20749.0,2.69207807]
[1673722749160,0.003,20750.0,20749.0,2.69207807]
[1673722749418,0.01033418,20751.0,20749.0,2.71776254]
[1673722749673,0.01033418,20751.0,20749.0,2.25966352]
[1673722749674,0.003,20750.0,20749.0,2.25966352]
[1673722749925,0.01033418,20751.0,20749.0,2.2863395]
[1673722750187,0.01333418,20751.0,20750.0,0.90115739]
[1673722750438,0.01094585,20753.0,20751.0,0.1]
[1673722750692,0.01094585,20753.0,20752.0,2.29058835]
[1673722750693,4.585e-05,20753.0,20752.0,2.29058835]
[1673722750968,4.585e-05,20753.0,20752.0,2.85490184]
[1673722751477,4.585e-05,20753.0,20752.0,2.49565523]
[1673722751732,0.00304585,20753.0,20752.0,2.49565523]
[1673722751991,0.00304585,20753.0,20752.0,2.85461469]
[1673722751992,4.585e-05,20753.0,20752.0,2.85461469]
[1673722752246,0.01045965,20758.0,20753.0,0.1]
[1673722752495,0.01045965,20758.0,20754.0,2.24649875]
[1673722752751,0.01045965,20758.0,20754.0,2.85465914]
[1673722753026,0.01045965,20758.0,20754.0,2.71115773]
[1673722753275,0.01045965,20758.0,20754.0,3.14174785]
[1673722753830,0.01045965,20758.0,20754.0,2.71093862]
[1673722754051,0.01045965,20758.0,20754.0,2.85432723]
[1673722754556,0.01045965,20758.0,20754.0,2.84993862]
[1673722754806,0.01045965,20758.0,20754.0,3.57793862]
[1673722755070,0.01045965,20758.0,20754.0,4.0039987]
[1673722755318,0.01045965,20758.0,20754.0,3.8649987]
[1673722755568,0.01045965,20758.0,20754.0,3.86011138]
[1673722755816,0.01045965,20758.0,20754.0,3.72111138]
[1673722756060,7.9e-07,20755.0,20754.0,3.72111138]
[1673722756312,7.9e-07,20755.0,20754.0,3.86011138]
[1673722756808,7.9e-07,20755.0,20754.0,3.7168687]
[1673722757314,7.9e-07,20755.0,20754.0,3.78892275]
[1673722757567,7.9e-07,20755.0,20754.0,3.64992275]
[1673722757821,7.9e-07,20755.0,20754.0,3.71656722]
[1673722758072,7.9e-07,20755.0,20754.0,3.57756722]
[1673722758327,0.01131091,20756.0,20754.0,3.71796526]
[1673722758575,0.01131091,20756.0,20755.0,0.87720169]
[1673722758829,0.01131091,20756.0,20755.0,2.01537671]
[1673722759585,0.01045965,20758.0,20756.0,0.07426707]
[1673722759844,0.01045965,20758.0,20757.0,0.1]
[1673722760092,0.01045965,20758.0,20757.0,1.57211769]
[1673722760345,0.01045965,20758.0,20757.0,1.87211769]
[1673722760841,0.01080463,20759.0,20757.0,1.87211769]
[1673722761100,0.01080463,20759.0,20758.0,0.48570169]
[1673722761362,0.01080463,20759.0,20758.0,2.76726469]
[1673722762369,0.01080463,20759.0,20758.0,2.66726469]
[1673722763125,0.00888203,20764.0,20758.0,2.66726469]
[1673722763368,0.00888203,20764.0,20759.0,1.32687279]
[1673722763616,0.00888203,20764.0,20760.0,2.43530369]
[1673722763869,0.00888203,20764.0,20761.0,0.87720169]
[1673722764126,0.00888203,20764.0,20762.0,1.467812]
[1673722764381,0.00888203,20764.0,20763.0,0.22416851]
[1673722764632,0.00888203,20764.0,20763.0,1.21027951]
[1673722764880,0.00888203,20764.0,20763.0,1.51027951]
[1673722765129,0.00888203,20764.0,20763.0,1.286111]
[1673722765394,0.00888203,20764.0,20763.0,2.156711]
[1673722765904,0.00888203,20764.0,20763.0,2.43378276]
[1673722766157,0.00888203,20764.0,20763.0,1.26318276]
[1673722766415,0.25833963,20764.0,20763.0,1.10425]
[1673722767193,0.25833963,20764.0,20763.0,0.141]
[1673722767444,0.25833963,20764.0,20761.0,0.72007179]
[1673722767715,0.44906558,20764.0,20763.0,0.142]
[1673722767960,0.25833963,20764.0,20763.0,0.142]
[1673722768212,0.57846163,20764.0,20763.0,0.142]
[1673722768963,0.57846163,20764.0,20762.0,0.25361322]
[1673722769208,0.57846163,20764.0,20760.0,0.96337]
[1673722769209,0.18807,20763.0,20761.0,0.41752627]
[1673722769461,0.27861391,20763.0,20761.0,0.27752627]
[1673722769972,0.00888203,20764.0,20760.0,0.481679]
[1673722770213,0.00888203,20764.0,20759.0,0.04898583]
[1673722770214,0.26887168,20762.0,20759.0,0.53068483]
[1673722770465,0.45959763,20762.0,20759.0,0.53068483]
[1673722770710,0.26887168,20762.0,20761.0,0.106]
[1673722770962,0.26887168,20762.0,20759.0,0.04898583]
[1673722771214,0.26887168,20762.0,20759.0,0.04085734]
[1673722771491,0.963271,20763.0,20759.0,0.04085734]
[1673722771747,0.26299076,20762.0,20759.0,0.04085734]
[1673722771995,0.26299076,20762.0,20760.0,0.106]
[1673722772247,0.26299076,20762.0,20759.0,0.04085734]
[1673722772504,0.26299076,20762.0,20759.0,0.14685734]
[1673722772748,0.26299076,20762.0,20759.0,0.04085734]
[1673722772996,0.26299076,20762.0,20759.0,0.07585734]
[1673722773514,0.26292416,20762.0,20759.0,0.04085734]
[1673722773776,0.26292416,20762.0,20759.0,0.07585734]
[1673722774823,0.26292416,20762.0,20759.0,0.14685734]
[1673722775045,0.26283975,20762.0,20759.0,0.04085734]
[1673722775299,0.26283975,20762.0,20760.0,0.28527648]
[1673722775568,0.35888203,20764.0,20761.0,0.481672]
[1673722775832,0.24708149,20763.0,20761.0,0.481672]
[1673722776602,0.24708149,20763.0,20761.0,0.963344]
[1673722776854,0.00888203,20764.0,20761.0,0.963344]
[1673722777352,0.00888203,20764.0,20762.0,0.23079978]
[1673722777602,0.00888203,20764.0,20763.0,0.481625]
[1673722777857,0.00888203,20764.0,20763.0,0.986117]
[1673722778118,0.00888203,20764.0,20763.0,1.286117]
[1673722779141,0.00888203,20764.0,20763.0,1.426117]
[1673722779658,0.00888203,20764.0,20763.0,1.68153464]
[1673722781935,0.00888203,20764.0,20763.0,1.38153464]
[1673722783185,0.00888203,20764.0,20763.0,1.35866764]
[1673722783706,0.00888203,20764.0,20763.0,1.21866764]
[1673722783977,0.00888203,20764.0,20763.0,1.36066764]
[1673722784482,0.00888203,20764.0,20763.0,1.21866764]
[1673722784731,0.00888203,20764.0,20763.0,1.32466764]
[1673722784987,0.00888203,20764.0,20763.0,1.21866764]
[1673722785236,0.00888203,20764.0,20763.0,1.36066764]
[1673722785489,0.00888203,20764.0,20760.0,0.8935]
[1673722785748,0.19072595,20763.0,20760.0,1.66614995]
[1673722786003,0.19072595,20763.0,20760.0,0.77264995]
[1673722786261,0.61210571,20764.0,20761.0,0.28773213]
[1673722786513,0.61210571,20764.0,20763.0,0.106]
[1673722786791,0.93222771,20764.0,20763.0,0.106]
[1673722787283,0.58222771,20764.0,20760.0,0.96335]
[1673722787531,0.18807,20763.0,20761.0,0.14]
[1673722787809,0.59650701,20764.0,20760.0,0.72843379]
[1673722788060,0.40578106,20764.0,20763.0,0.106]
[1673722788321,0.26210571,20764.0,20760.0,0.72843379]
[1673722788579,0.320122,20763.0,20760.0,0.86843379]
[1673722788923,0.45283166,20764.0,20760.0,0.86843379]
[1673722788924,1.07811001,20764.0,20760.0,0.86843379]
[1673722789081,1.10692835,20763.0,20760.0,0.14]
[1673722789339,1.10692835,20763.0,20759.0,0.04085734]
[1673722789340,0.320122,20762.0,20759.0,0.04085734]
[1673722789599,0.320122,20762.0,20760.0,0.141]
[1673722789600,0.18807,20761.0,20760.0,0.141]
[1673722789846,0.22225299,20761.0,20759.0,0.04085734]
[1673722790112,0.22225299,20761.0,20760.0,0.045]
[1673722790358,0.22225299,20761.0,20758.0,0.481739]
[1673722790607,0.22225299,20761.0,20760.0,0.045]
[1673722790866,0.22225299,20761.0,20758.0,0.78218815]
[1673722791113,0.22225299,20761.0,20759.0,0.045]
[1673722791360,0.22225299,20761.0,20758.0,1.26391315]
[1673722792633,0.22225299,20761.0,20759.0,0.126]
[1673722793655,0.22225299,20761.0,20758.0,1.26389515]
[1673722793901,0.22225299,20761.0,20759.0,0.126]
[1673722794671,0.22225299,20761.0,20759.0,0.607712]
[1673722795390,0.22225299,20761.0,20759.0,0.525712]
[1673722796657,0.22225299,20761.0,20759.0,0.481712]
[1673722796909,0.22225299,20761.0,20759.0,0.622712]
[1673722798169,0.22225299,20761.0,20759.0,0.481712]
[1673722798428,0.22225299,20761.0,20759.0,0.525712]
[1673722799523,0.22225299,20761.0,20759.0,0.481712]
[1673722800318,0.22225299,20761.0,20757.0,0.58315178]
[1673722800565,0.22225299,20761.0,20758.0,0.48172]
[1673722800566,0.41297894,20761.0,20758.0,0.48172]
[1673722800832,0.62532135,20763.0,20758.0,0.23082377]
[1673722800833,0.25735446,20760.0,20758.0,0.23082377]
[1673722801094,0.25735446,20760.0,20759.0,0.044]
[1673722801908,0.25666546,20760.0,20759.0,0.044]
[1673722802415,0.71245503,20760.0,20759.0,0.044]
[1673722802683,0.71245503,20760.0,20759.0,1e-08]
[1673722802684,1.67946801,20760.0,20759.0,1e-08]
[1673722802944,1.05409766,20760.0,20759.0,1e-08]
[1673722803213,0.2604934,20759.0,20757.0,0.35782222]
[1673722803515,0.35,20760.0,20757.0,0.35782222]
[1673722803763,0.35,20760.0,20758.0,0.23479665]
[1673722804368,0.26543302,20761.0,20758.0,0.23479665]
[1673722804628,0.26143302,20761.0,20758.0,0.23479665]
[1673722804897,0.003,20760.0,20758.0,0.37379665]
[1673722805416,0.26143302,20761.0,20758.0,0.23479665]
[1673722805700,0.26143302,20761.0,20759.0,0.24274514]
[1673722805701,0.30643302,20761.0,20759.0,0.24274514]
[1673722806232,0.045,20760.0,20759.0,0.72446214]
[1673722807283,0.26143302,20761.0,20759.0,0.72446214]
[1673722807550,0.30643302,20761.0,20759.0,0.72446214]
[1673722808054,0.044,20760.0,20759.0,0.72446214]
[1673722808625,0.044,20760.0,20759.0,0.974435]
[1673722809155,0.044,20760.0,20759.0,0.997314]
[1673722809409,0.27040395,20762.0,20759.0,1.24651386]
[1673722809665,0.27040395,20762.0,20760.0,0.22305918]
[1673722810702,0.31440395,20762.0,20760.0,0.23405918]
[1673722812332,0.31440395,20762.0,20760.0,0.71575018]
[1673722813855,0.23523023,20761.0,20760.0,0.011]
[1673722814900,0.7185587,20761.0,20760.0,0.011]
[1673722815105,0.98774488,20761.0,20760.0,0.011]
[1673722815348,1.6178969,20761.0,20755.0,0.77935169]
[1673722815600,0.73891817,20760.0,20755.0,0.77935169]
[1673722815846,0.19072595,20759.0,20755.0,0.29755669]
[1673722816099,0.23893308,20758.0,20755.0,0.29755669]
[1673722816360,0.42965903,20758.0,20755.0,0.29755669]
[1673722816626,0.23893308,20758.0,20755.0,0.29755669]
[1673722816858,0.72068908,20758.0,20755.0,0.1]
[1673722817102,0.72068908,20758.0,20753.0,4.20303183]
[1673722817349,0.19072595,20757.0,20755.0,0.1]
[1673722817595,0.91442303,20758.0,20755.0,0.1]
[1673722817835,0.801889,20757.0,20755.0,0.1]
[1673722818089,0.18807,20756.0,20755.0,0.1]
[1673722818330,0.481767,20757.0,20755.0,0.1]
[1673722818820,0.29649392,20756.0,20754.0,0.27517262]
[1673722819573,0.29649392,20756.0,20752.0,0.70656927]
[1673722819821,1.26007392,20756.0,20752.0,0.22470827]
[1673722821358,1.26007392,20756.0,20752.0,0.36270827]
[1673722821359,1.26407392,20756.0,20752.0,0.36270827]
[1673722821602,0.96758,20756.0,20752.0,0.14476955]
[1673722822123,0.22448095,20755.0,20752.0,0.00676955]
[1673722822363,0.70629795,20755.0,20752.0,0.00676955]
[1673722822608,1.4049985,20755.0,20752.0,0.00676955]
[1673722822846,1.4049985,20755.0,20752.0,0.03376955]
[1673722823109,1.4049985,20755.0,20752.0,0.00676955]
[1673722823358,1.4079985,20755.0,20752.0,0.00676955]
[1673722823608,1.4049985,20755.0,20752.0,0.00676955]
[1673722823856,1.18810895,20755.0,20752.0,0.03376955]
[1673722824102,0.23001337,20754.0,20752.0,0.00676955]
[1673722824854,0.23001337,20754.0,20752.0,0.10676955]
[1673722825098,0.23001337,20754.0,20752.0,0.00676955]
[1673722825341,0.23001337,20754.0,20752.0,0.03376955]
[1673722825594,0.23001337,20754.0,20752.0,0.00676955]
[1673722825845,0.23301337,20754.0,20752.0,0.10676955]
[1673722826086,0.23301337,20754.0,20752.0,0.00676955]
[1673722826325,0.23001337,20754.0,20752.0,0.00676955]
[1673722826605,0.23001337,20754.0,20752.0,0.03376955]
[1673722827082,0.23301337,20754.0,20752.0,0.13376955]
[1673722827323,0.003,20754.0,20752.0,0.39612774]
[1673722827603,0.003,20754.0,20753.0,0.26837588]
[1673722827853,0.22785271,20755.0,20753.0,0.26837588]
[1673722828091,0.22785271,20755.0,20753.0,0.72733988]
[1673722828353,0.003,20754.0,20753.0,0.72733988]
[1673722828613,0.22785271,20755.0,20753.0,0.72733988]
[1673722828856,0.2687572,20755.0,20753.0,0.72833988]
[1673722829105,0.041,20755.0,20753.0,1.21019788]
[1673722829345,0.58412285,20757.0,20754.0,0.31259337]
[1673722829584,0.58412285,20757.0,20755.0,0.963622]
[1673722829832,0.35096863,20757.0,20755.0,0.963622]
[1673722830089,0.35,20757.0,20755.0,0.963622]
[1673722830322,1.27867564,20759.0,20756.0,0.022889]
[1673722830565,0.27867564,20759.0,20757.0,0.481765]
[1673722830827,0.00096821,20760.0,20757.0,0.481765]
[1673722830828,0.00096821,20760.0,20757.0,0.96353]
[1673722831061,0.29606444,20760.0,20757.0,0.96353]
[1673722831811,0.044,20759.0,20758.0,0.022882]
[1673722832049,0.044,20759.0,20758.0,1.60516865]
[1673722832306,0.044,20759.0,20758.0,1.20516865]
[1673722833049,0.044,20759.0,20758.0,1.50516865]
[1673722833560,0.25978905,20762.0,20758.0,1.50516865]
[1673722833816,0.042,20759.0,20758.0,1.49028665]
[1673722834105,0.042,20759.0,20758.0,1.51316265]
[1673722834357,0.00095579,20763.0,20758.0,1.286358]
[1673722834604,0.042,20762.0,20759.0,1.0365]
[1673722834843,0.00095579,20763.0,20760.0,1.467957]
[1673722835091,0.00095579,20763.0,20760.0,1.445085]
[1673722835347,0.00095579,20763.0,20761.0,0.022868]
[1673722835600,0.00095579,20763.0,20762.0,0.963298]
[1673722835838,0.3004876,20764.0,20762.0,0.963298]
[1673722837061,0.3034876,20764.0,20762.0,1.102298]
[1673722837304,0.003,20764.0,20762.0,1.102298]
[1673722837539,0.006,20764.0,20762.0,1.241298]
[1673722837787,0.006,20764.0,20763.0,0.22287716]
[1673722838029,0.006,20764.0,20763.0,1.18612716]
[1673722839537,0.01262437,20765.0,20763.0,1.18612716]
[1673722840078,0.01262437,20765.0,20764.0,0.28583204]
[1673722840326,0.01262437,20765.0,20764.0,1.27189804]
[1673722840582,0.01262437,20765.0,20764.0,1.24903604]
[1673722841086,0.01562437,20765.0,20764.0,1.24903604]
[1673722841342,0.01562437,20765.0,20764.0,0.987204]
[1673722841582,0.01562437,20765.0,20764.0,0.024]
[1673722841583,0.28158556,20765.0,20764.0,0.024]
[1673722842303,0.27858556,20765.0,20764.0,0.097]
[1673722842599,0.28158556,20765.0,20763.0,1.43529863]
[1673722842841,0.32258556,20765.0,20764.0,0.07087]
[1673722843082,0.32258556,20765.0,20764.0,0.001]
[1673722843326,0.35625452,20765.0,20764.0,0.001]
[1673722843565,0.64270756,20765.0,20764.0,0.001]
[1673722844045,0.59870756,20765.0,20761.0,0.71552137]
[1673722844310,0.18807,20764.0,20761.0,0.71552137]
[1673722844552,0.19072595,20764.0,20761.0,0.71552137]
[1673722845053,0.79916656,20765.0,20761.0,0.71552137]
[1673722845296,0.29017742,20764.0,20761.0,0.71552137]
[1673722845551,0.29017742,20764.0,20761.0,0.33085837]
[1673722845552,0.29317742,20764.0,20761.0,0.33085837]
[1673722846308,0.29317742,20764.0,20761.0,0.097]
[1673722847545,0.320122,20763.0,20761.0,0.097]
[1673722847785,0.18807,20762.0,20761.0,0.097]
[1673722848026,0.26971486,20763.0,20761.0,0.097]
[1673722848277,0.26971486,20763.0,20760.0,0.70004627]
[1673722848514,0.27271486,20763.0,20761.0,0.097]
[1673722849247,0.26971486,20763.0,20760.0,0.70004627]
[1673722849489,0.27271486,20763.0,20761.0,0.097]
[1673722849730,0.27271486,20763.0,20760.0,0.70004627]
[1673722849968,0.26971486,20763.0,20760.0,0.70004627]
[1673722850257,0.27271486,20763.0,20761.0,0.097]
[1673722850980,0.26971486,20763.0,20760.0,0.70004627]
[1673722851220,0.27260125,20763.0,20760.0,0.83904627]
[1673722851472,0.26960125,20763.0,20760.0,0.70004627]
[1673722851720,0.24544128,20762.0,20761.0,0.097]
[1673722851969,0.24544128,20762.0,20760.0,0.70004627]
[1673722852207,0.24544128,20762.0,20760.0,0.35735727]
[1673722852453,0.24544128,20762.0,20760.0,0.21835727]
[1673722852745,0.24844128,20762.0,20761.0,0.097]
[1673722852998,0.24544128,20762.0,20760.0,0.21835727]
[1673722853464,0.24544128,20762.0,20759.0,0.481701]
[1673722853969,0.47816723,20762.0,20760.0,0.001]
[1673722854236,0.320122,20761.0,20760.0,0.001]
[1673722854499,0.315122,20761.0,20757.0,0.24218897]
[1673722854743,0.315122,20761.0,20759.0,0.03]
[1673722854744,0.67239795,20761.0,20759.0,0.03]
[1673722854995,0.481672,20761.0,20757.0,0.24218897]
[1673722855248,0.89374931,20761.0,20757.0,0.24218897]
[1673722855498,0.93274931,20761.0,20757.0,0.24218897]
[1673722856028,0.25600866,20760.0,20759.0,0.03]
[1673722856522,0.25600866,20760.0,20757.0,0.24218897]
[1673722856770,0.25600866,20760.0,20757.0,0.34518897]
[1673722857023,0.25600866,20760.0,20757.0,0.24218897]
[1673722857270,0.29500866,20760.0,20759.0,0.00092499]
[1673722857528,0.25600866,20760.0,20757.0,0.72395197]
[1673722857781,0.25900866,20760.0,20757.0,0.82695197]
[1673722858033,0.25600866,20760.0,20757.0,0.72395197]
[1673722858289,0.29500866,20760.0,20759.0,0.001]
[1673722858540,0.29500866,20760.0,20759.0,0.07087]
[1673722858541,0.039,20760.0,20759.0,0.07087]
[1673722859315,0.00098225,20762.0,20759.0,1.033306]
[1673722859585,0.003,20760.0,20759.0,1.735006]
[1673722859839,0.003,20760.0,20759.0,2.29250822]
[1673722860109,0.039,20760.0,20759.0,2.29150822]
[1673722860371,0.039,20760.0,20759.0,2.063881]
[1673722860616,0.00098225,20762.0,20759.0,2.062881]
[1673722860864,0.00098225,20762.0,20759.0,2.036006]
[1673722861122,0.039,20760.0,20759.0,2.036006]
[1673722861369,0.039,20760.0,20759.0,2.063881]
[1673722862377,0.01360607,20765.0,20759.0,2.062881]
[1673722862634,0.039,20762.0,20760.0,0.4]
[1673722862905,0.039,20762.0,20761.0,1.472884]
[1673722863164,0.039,20762.0,20761.0,1.772884]
[1673722863651,0.01358206,20765.0,20761.0,1.772884]
[1673722863917,0.01358206,20765.0,20761.0,1.66462975]
[1673722863918,0.35013043,20765.0,20761.0,1.66462975]
[1673722864166,0.35013043,20765.0,20761.0,0.481672]
[1673722864167,0.25867489,20763.0,20761.0,0.481672]
[1673722864424,0.28987077,20762.0,20761.0,0.008]
[1673722865182,0.24087077,20762.0,20760.0,1.23414391]
[1673722865442,0.24087077,20762.0,20761.0,0.008]
[1673722865696,0.24087077,20762.0,20760.0,1.23412391]
[1673722865975,0.28987077,20762.0,20761.0,0.008]
[1673722866241,0.24087077,20762.0,20760.0,1.23412091]
[1673722866495,0.27987077,20762.0,20760.0,1.23514091]
[1673722866775,0.27987077,20762.0,20760.0,0.27177091]
[1673722867018,0.27987077,20762.0,20760.0,0.001]
[1673722868704,0.5953409,20761.0,20760.0,0.001]
[1673722868953,0.2752259,20761.0,20760.0,0.001]
[1673722869706,0.5953409,20761.0,20759.0,0.91960354]
[1673722869958,0.3142259,20761.0,20760.0,0.001]
[1673722871769,0.6343409,20761.0,20760.0,0.001]
[1673722872012,0.3142259,20761.0,20760.0,0.001]
[1673722872266,0.77838979,20761.0,20760.0,0.001]
[1673722872523,0.6343409,20761.0,20760.0,0.001]
[1673722873042,0.3142259,20761.0,20760.0,0.001]
[1673722873294,0.6343409,20761.0,20760.0,0.001]
[1673722873793,0.3142259,20761.0,20760.0,0.001]
[1673722874017,0.039,20761.0,20760.0,0.2952985]
[1673722874275,0.039,20761.0,20760.0,0.7769935]
[1673722874557,0.039,20761.0,20760.0,1.2586885]
[1673722874807,0.039,20761.0,20760.0,1.2865615]
[1673722875319,0.039,20761.0,20760.0,1.2586885]
[1673722877343,0.039,20761.0,20760.0,1.2865615]
[1673722878167,0.039,20761.0,20760.0,1.2586885]
[1673722878674,0.03889711,20761.0,20760.0,1.2586885]
[1673722882274,0.03889711,20761.0,20760.0,1.40207354]
[1673722882507,0.03889711,20761.0,20760.0,1.2586885]
[1673722883514,0.03889711,20761.0,20760.0,1.40207354]
[1673722883767,0.03889711,20761.0,20760.0,1.42994654]
[1673722884020,0.03889711,20761.0,20760.0,1.40207354]
[1673722885285,0.03889711,20761.0,20760.0,1.2586885]
[1673722885543,0.03889711,20761.0,20760.0,1.40207354]
[1673722887324,0.03889711,20761.0,20760.0,1.2586885]
[1673722891991,0.03889711,20761.0,20760.0,0.001]
[1673722892285,0.22962306,20761.0,20760.0,0.001]
[1673722892523,2.519477,20761.0,20760.0,0.001]
[1673722892774,2.57046131,20761.0,20760.0,0.001]
[1673722893021,4.12111608,20761.0,20760.0,0.001]
[1673722893273,4.47111608,20761.0,20760.0,0.001]
[1673722893513,5.55466969,20761.0,20760.0,0.001]
[1673722893774,0.00198077,20759.0,20754.0,0.29119752]
[1673722894026,1.69781215,20758.0,20754.0,0.29119752]
[1673722894289,0.51084095,20757.0,20755.0,0.2297949]
[1673722894539,0.183078,20756.0,20752.0,0.84713514]
[1673722894785,0.19072595,20755.0,20753.0,0.24781149]
[1673722895041,0.28084426,20756.0,20753.0,0.24781149]
[1673722895285,0.28084426,20756.0,20754.0,0.1]
[1673722895530,0.28084426,20756.0,20753.0,0.24781149]
[1673722895776,0.76964326,20756.0,20753.0,0.24781149]
[1673722896506,0.76264326,20756.0,20753.0,0.24781149]
[1673722896765,0.77364326,20756.0,20753.0,0.31181149]
[1673722897017,1.25543126,20756.0,20753.0,0.31181149]
[1673722897275,0.27704235,20755.0,20753.0,0.31181149]
[1673722897532,0.974587,20756.0,20753.0,0.31181149]
[1673722897533,0.492799,20756.0,20753.0,0.31181149]
[1673722897780,0.492799,20756.0,20754.0,0.22313595]
[1673722898035,0.011,20756.0,20754.0,0.22313595]
[1673722899069,0.01090337,20756.0,20754.0,0.22313595]
[1673722899327,0.2692892,20756.0,20752.0,0.48864155]
[1673722899600,0.2762892,20756.0,20754.0,0.39446711]
[1673722900101,0.2692892,20756.0,20754.0,0.29446711]
[1673722901379,0.2762892,20756.0,20754.0,0.39446711]
[1673722901632,0.2762892,20756.0,20754.0,0.87630111]
[1673722902855,0.007,20756.0,20755.0,0.2864732]
[1673722903873,0.24831302,20757.0,20755.0,0.2864732]
[1673722904126,0.24831302,20757.0,20755.0,0.3864732]
[1673722904368,0.007,20756.0,20755.0,0.3864732]
[1673722905439,0.24831302,20757.0,20755.0,0.2864732]
[1673722905687,0.25531302,20757.0,20755.0,0.3864732]
[1673722905944,0.25531302,20757.0,20755.0,0.2864732]
[1673722906188,0.007,20756.0,20755.0,0.3864732]
[1673722906417,0.24831302,20757.0,20755.0,0.2864732]
[1673722906669,0.25531302,20757.0,20755.0,0.3864732]
[1673722908846,0.320115,20756.0,20755.0,0.1]
[1673722909101,0.25531302,20757.0,20755.0,0.1]
[1673722911632,0.26825514,20756.0,20755.0,0.1]
[1673722911886,0.51084095,20756.0,20755.0,0.1]
[1673722912149,1.283691,20756.0,20755.0,0.1]
[1673722912398,1.283691,20756.0,20752.0,0.00676955]
[1673722912399,2.49582937,20756.0,20752.0,0.00676955]
[1673722912649,0.183078,20755.0,20752.0,0.00676955]
[1673722912894,0.320115,20754.0,20752.0,0.2872116]
[1673722913143,0.183078,20753.0,20752.0,0.7690916]
[1673722913387,0.2570298,20755.0,20752.0,0.7690916]
[1673722913882,0.2640298,20755.0,20752.0,0.7690916]
[1673722914139,0.2570298,20755.0,20752.0,0.7690916]
[1673722914400,0.007,20753.0,20752.0,1.3509726]
[1673722915167,0.2570298,20755.0,20752.0,0.97053055]
[1673722915407,0.2650298,20755.0,20753.0,0.29041064]
[1673722915641,0.2650298,20755.0,20753.0,0.77226464]
[1673722916149,0.2570298,20755.0,20753.0,0.77226464]
[1673722916385,0.2650298,20755.0,20753.0,0.86226464]
[1673722916636,0.2570298,20755.0,20753.0,0.77226464]
[1673722916874,0.2650298,20755.0,20753.0,0.86226464]
[1673722918121,0.2570298,20755.0,20753.0,0.77226464]
[1673722918372,0.2660298,20755.0,20753.0,0.77226464]
[1673722918896,0.2750298,20755.0,20753.0,0.37541064]
[1673722920880,0.2750298,20755.0,20753.0,0.37525078]
[1673722921629,0.320115,20754.0,20753.0,0.37525078]
[1673722921875,0.320115,20754.0,20753.0,0.085]
[1673722922121,0.320115,20754.0,20752.0,0.70178776]
[1673722922420,0.2620298,20755.0,20753.0,0.058]
[1673722922667,0.25771914,20754.0,20753.0,0.058]
[1673722922901,0.57783414,20754.0,20752.0,0.70178776]
[1673722923171,0.26271914,20754.0,20753.0,0.058]
[1673722923423,0.25771914,20754.0,20752.0,0.70178776]
[1673722923675,0.25771914,20754.0,20753.0,0.058]
[1673722924439,0.25771914,20754.0,20752.0,0.70178776]
[1673722924682,0.26571914,20754.0,20752.0,0.79378776]
[1673722924933,0.26571914,20754.0,20752.0,0.70178776]
[1673722925171,0.26271914,20754.0,20753.0,0.058]
[1673722925415,0.25771914,20754.0,20752.0,1.18365376]
[1673722925661,0.26571914,20754.0,20752.0,1.27565376]